bitfinex/quotes_ETHUSD_20260113
["timestamp","ask_amount","ask_price","bid_price","bid_amount"]
[1768320754662,0.246,3182.1,3181.1,7.23953168]
[1768320754959,0.246,3182.1,3181.2,0.93015855]
[1768320755134,0.24279696,3182.1,3181.2,0.93015855]
[1768320755546,2.33058457,3182.1,3181.2,0.93015855]
[1768320755748,2.33058457,3182.1,3181.1,7.23955332]
[1768320756076,2.33058457,3182.1,3181.1,4.096]
[1768320756252,6.28535512,3182.0,3181.1,7.23950795]
[1768320757123,3.14267756,3182.0,3181.1,7.23950795]
[1768320757323,6.28535512,3182.0,3181.3,2.00850968]
[1768320757555,3.38547452,3182.0,3181.3,2.00850968]
[1768320757754,3.13947452,3182.0,3181.2,1.03831589]
[1768320757935,3.13947452,3182.0,3181.2,3.04682557]
[1768320758454,3.1425788,3182.1,3181.4,0.001]
[1768320758625,6.28195456,3182.1,3181.4,0.001]
[1768320759061,3.13937576,3182.1,3181.4,0.001]
[1768320759226,6.28195456,3182.1,3181.4,0.62012484]
[1768320759852,6.27875152,3182.1,3181.4,0.001]
[1768320760254,9.42133032,3182.1,3181.4,0.001]
[1768320760959,11.50591489,3182.1,3181.4,0.001]
[1768320761153,6.27554848,3182.1,3181.4,0.001]
[1768320762275,6.27234544,3182.1,3181.4,0.001]
[1768320763276,6.2691424,3182.1,3181.4,0.001]
[1768320763476,3.1265636,3182.1,3181.4,0.001]
[1768320763774,6.2691424,3182.1,3181.4,0.20195097]
[1768320764273,3.1265636,3182.1,3181.4,0.20195097]
[1768320764582,6.26593936,3182.1,3181.4,0.20195097]
[1768320764967,2.08778761,3182.7,3181.4,2.21046065]
[1768320765173,6.53017016,3182.6,3181.4,2.21046065]
[1768320765480,6.53017016,3182.6,3181.5,5.37268898]
[1768320765676,6.1456192,3182.6,3181.5,5.37268898]
[1768320766079,8.23340681,3182.6,3181.5,5.37268898]
[1768320766284,6.28338044,3183.0,3181.6,2.25450968]
[1768320766494,3.14169022,3183.0,3181.6,2.25450968]
[1768320766693,3.14139415,3183.3,3182.3,2.00850968]
[1768320766901,3.14139415,3183.3,3182.3,2.25450968]
[1768320766902,6.2827883,3183.3,3182.3,2.25450968]
[1768320767192,0.29319658,3183.2,3182.3,2.25450968]
[1768320767403,0.29326855,3183.1,3182.3,0.246]
[1768320767607,2.08778761,3182.9,3181.9,0.246]
[1768320767805,2.08778761,3182.9,3181.9,0.78574321]
[1768320768003,2.08458487,3182.9,3181.9,0.246]
[1768320768509,2.38119389,3182.8,3181.9,0.246]
[1768320768809,2.08778761,3182.8,3181.7,3.14296239]
[1768320769005,2.08778761,3182.8,3181.5,0.22104607]
[1768320769227,2.08458487,3182.8,3181.7,3.14291433]
[1768320769400,6.28417016,3182.6,3181.8,0.31429143]
[1768320769606,9.42625524,3182.6,3181.5,0.22104607]
[1768320769991,6.28417016,3182.6,3181.5,2.22955575]
[1768320770192,6.28096742,3182.6,3181.6,2.00850968]
[1768320770990,11.51084011,3182.6,3181.5,0.22104607]
[1768320771409,9.42364491,3182.4,3181.5,0.22104607]
[1768320771597,2.62753516,3182.3,3181.4,0.001]
[1768320771803,0.29374755,3182.2,3181.4,0.001]
[1768320772816,0.246,3182.3,3181.4,0.001]
[1768320772817,2.33378761,3182.3,3181.4,0.001]
[1768320773371,6.28496008,3182.2,3181.4,0.001]
[1768320774003,6.28175734,3182.2,3181.4,0.001]
[1768320774399,9.42423738,3182.2,3181.4,0.001]
[1768320774600,11.51202499,3182.2,3181.4,0.001]
[1768320774931,1.17259976,3182.1,3181.4,0.001]
[1768320775139,8.36954495,3182.2,3181.4,0.001]
[1768320775456,11.51202499,3182.2,3181.4,0.001]
[1768320775828,2.08778761,3182.1,3181.4,0.001]
[1768320776220,2.08458487,3182.1,3181.4,0.001]
[1768320776537,2.08458487,3182.1,3181.1,1.0]
[1768320776538,2.08778761,3182.0,3180.9,0.001]
[1768320777247,2.08458275,3182.0,3180.5,0.246]
[1768320777617,2.08778761,3181.8,3180.5,0.246]
[1768320777841,2.08778761,3181.6,3180.5,0.246]
[1768320778013,0.246,3181.7,3180.5,0.246]
[1768320778014,2.32116637,3181.5,3180.5,0.246]
[1768320778454,2.31796151,3181.5,3180.5,0.246]
[1768320779581,2.31796151,3181.5,3180.1,2.25450968]
[1768320779582,11.5143935,3181.4,3180.1,2.25450968]
[1768320779737,2.08778761,3181.3,3180.1,5.39900898]
[1768320779927,2.08778761,3181.3,3180.2,3.68434982]
[1768320780127,2.08778761,3181.3,3180.2,0.5399009]
[1768320780736,2.08458275,3181.3,3180.2,0.5399009]
[1768320781345,2.08458275,3181.3,3180.1,2.25450968]
[1768320781546,6.28693574,3181.2,3180.2,3.14445632]
[1768320781862,6.53293574,3181.2,3180.3,2.00850968]
[1768320782037,6.52973088,3181.2,3180.3,2.00850968]
[1768320782638,6.28373088,3181.2,3180.3,2.00850968]
[1768320782847,3.14277632,3181.9,3180.5,2.00850968]
[1768320783055,3.38877632,3181.9,3180.5,2.00850968]
[1768320783272,6.53155264,3181.9,3180.5,2.00850968]
[1768320783578,9.67438345,3181.9,3180.8,0.001]
[1768320783778,2.12707354,3181.8,3180.8,0.001]
[1768320784333,2.08778761,3181.8,3180.8,0.001]
[1768320784831,0.29323019,3181.7,3180.8,0.001]
[1768320785031,2.08778761,3181.8,3180.4,2.83825191]
[1768320785332,2.08778761,3181.8,3180.5,2.5160604]
[1768320785333,0.29323059,3181.7,3180.5,2.5160604]
[1768320785559,9.67438345,3181.9,3180.6,1.91780282]
[1768320785861,9.67438345,3181.9,3180.7,1.91780282]
[1768320785862,6.28594776,3181.7,3180.7,1.91780282]
[1768320786842,0.246,3181.6,3180.7,1.91780282]
[1768320787660,2.31599228,3181.6,3180.4,1.91780282]
[1768320787969,11.49950666,3181.5,3180.5,0.50621278]
[1768320788162,11.49950666,3181.5,3180.4,1.91780282]
[1768320789467,2.06999228,3181.4,3180.1,2.16380282]
[1768320789910,9.43010718,3181.3,3180.1,2.16380282]
[1768320790084,2.06999228,3181.2,3179.9,1.91780282]
[1768320790292,0.246,3181.1,3180.0,0.19178028]
[1768320791281,2.31599228,3181.1,3180.0,0.19178028]
[1768320791489,2.06999228,3180.9,3179.3,1.91780282]
[1768320791787,11.50217486,3180.6,3179.3,1.91780282]
[1768320791944,1.39621749,3180.5,3179.3,2.42413399]
[1768320792144,1.39621749,3180.5,3179.3,5.56940225]
[1768320792344,1.39621749,3180.5,3179.3,8.7147487]
[1768320792682,3.46620977,3180.5,3179.3,5.56940225]
[1768320793768,3.14425858,3180.4,3179.3,2.42413399]
[1768320794011,3.46620977,3180.5,3179.4,0.2424134]
[1768320794178,3.14425858,3180.4,3179.4,2.16021622]
[1768320794516,0.246,3180.5,3179.4,2.16021622]
[1768320794695,6.53433697,3180.5,3179.4,2.16021622]
[1768320795006,3.39020832,3180.5,3179.4,2.16021622]
[1768320795213,6.53441664,3180.5,3179.4,2.16021622]
[1768320795407,6.53441664,3180.5,3179.5,2.18445756]
[1768320795622,3.14299072,3181.7,3179.5,2.18445756]
[1768320795623,2.06999228,3181.1,3179.5,2.18445756]
[1768320795768,3.14376434,3180.9,3179.6,5.02465215]
[1768320795969,9.43129302,3180.9,3179.7,1.87960246]
[1768320796190,1.86100048,3180.8,3179.8,0.50246521]
[1768320796482,1.86100048,3180.8,3179.5,0.51265474]
[1768320796686,1.86100048,3180.8,3179.5,3.65771336]
[1768320796687,0.246,3180.7,3179.5,3.65771336]
[1768320796888,2.10700048,3180.7,3179.3,0.50633117]
[1768320797167,1.86100048,3180.5,3179.6,0.001]
[1768320797362,1.86100048,3180.3,3178.9,1.87960246]
[1768320797599,0.246,3180.2,3179.0,3.14561218]
[1768320797808,2.10700048,3180.2,3178.9,5.0252596]
[1768320798104,6.2891104,3180.1,3178.9,8.17100183]
[1768320798315,8.15011088,3180.1,3179.0,0.81710018]
[1768320798504,1.86100048,3180.0,3179.0,0.81710018]
[1768320798798,1.86100048,3180.0,3178.7,0.246]
[1768320798979,1.86100048,3180.0,3178.6,1.87960246]
[1768320799184,1.86100048,3180.0,3178.3,1.87960246]
[1768320799369,12.5782208,3180.1,3178.3,5.02590163]
[1768320799370,1.86100048,3179.8,3178.3,5.02590163]
[1768320799570,1.86100048,3179.6,3178.3,5.55309179]
[1768320799786,1.86100048,3179.6,3178.5,3.14607073]
[1768320799978,6.2902972,3179.5,3178.3,5.55311316]
[1768320800179,8.15129768,3179.5,3178.3,5.55311316]
[1768320800578,1.86100048,3179.4,3178.3,0.52719016]
[1768320800801,1.86100048,3179.4,3178.0,1.88060246]
[1768320801000,1.86100048,3179.4,3178.0,5.02719153]
[1768320801509,1.86100048,3179.4,3178.0,1.88060246]
[1768320801693,1.86100048,3179.2,3177.5,0.0008012]
[1768320801900,1.86100048,3179.0,3177.5,0.0008012]
[1768320802103,11.29882096,3178.7,3177.5,0.0008012]
[1768320802290,0.246,3178.6,3177.5,0.0008012]
[1768320802608,2.10700048,3178.6,3177.5,0.0008012]
[1768320803890,2.10700048,3178.6,3177.5,3.14792944]
[1768320804090,5.00733657,3178.3,3177.5,0.0008012]
[1768320804492,8.15367266,3178.3,3177.5,0.0008012]
[1768320804873,0.247,3178.2,3177.5,0.0008012]
[1768320805101,0.247,3178.1,3177.5,0.0008012]
[1768320805869,0.04423323,3178.1,3177.5,0.0008012]
[1768320806073,0.04423323,3178.1,3177.5,0.50579666]
[1768320806513,1.86100048,3179.0,3177.6,1.87960246]
[1768320806713,6.53848446,3178.9,3177.6,1.87960246]
[1768320807217,9.68422669,3178.9,3177.6,1.87960246]
[1768320807417,1.86100048,3178.7,3177.6,0.55550034]
[1768320807575,1.86100048,3178.7,3177.5,0.0008012]
[1768320808603,1.15452272,3178.8,3177.5,0.0008012]
[1768320808604,6.29207826,3178.6,3177.5,0.0008012]
[1768320809019,0.247,3178.5,3177.5,0.0008012]
[1768320809325,6.29207826,3178.6,3177.6,1.87960246]
[1768320809621,0.247,3178.5,3177.6,1.87960246]
[1768320809989,6.29207826,3178.6,3177.5,0.63257448]
[1768320810193,0.247,3178.5,3177.8,0.001]
[1768320810713,3.3932371,3178.4,3177.8,0.001]
[1768320811019,0.247,3178.3,3177.8,0.001]
[1768320812023,0.247,3178.2,3177.8,0.001]
[1768320812226,3.14594016,3178.7,3177.8,0.001]
[1768320812400,0.247,3178.6,3177.8,0.18906025]
[1768320812726,3.14613811,3178.5,3177.8,0.18906025]
[1768320812912,6.29227622,3178.5,3177.8,0.18906025]
[1768320813496,8.1532767,3178.5,3177.5,0.0008012]
[1768320813695,8.99330437,3178.5,3177.5,0.0008012]
[1768320814598,12.13944248,3178.5,3177.5,0.0008012]
[1768320814836,8.99330437,3178.5,3177.5,0.0008012]
[1768320815354,2.0024316,3178.4,3177.5,0.0008012]
[1768320815696,0.247,3178.3,3177.5,0.0008012]
[1768320816134,1.49978736,3178.3,3177.5,0.0008012]
[1768320816440,2.0024316,3178.2,3176.8,2.01551031]
[1768320816643,9.43960227,3178.1,3176.8,2.01551031]
[1768320816795,2.0024316,3178.0,3176.5,3.16006187]
[1768320817201,2.29410194,3177.9,3176.5,3.16006187]
[1768320817401,2.47884179,3177.8,3176.5,3.16006187]
[1768320817629,2.47884179,3177.8,3176.5,6.30813315]
[1768320817838,2.47884179,3177.8,3176.5,3.16006187]
[1768320818133,2.47884179,3177.8,3176.5,6.30811454]
[1768320818432,2.47884179,3177.8,3176.5,6.30812799]
[1768320818603,3.1470292,3177.6,3176.6,3.14801989]
[1768320818802,2.0024316,3177.5,3176.5,1.14455156]
[1768320819537,2.0024316,3177.3,3176.5,1.14455156]
[1768320819956,0.247,3177.2,3176.5,1.14455156]
[1768320820300,6.2940584,3177.6,3176.5,1.14455156]
[1768320820301,0.247,3177.1,3176.5,6.30818086]
[1768320820508,3.1470292,3177.6,3176.6,2.6463284]
[1768320820926,2.0024316,3177.9,3176.6,2.6463284]
[1768320820927,6.54142898,3177.5,3176.6,5.79430839]
[1768320821537,8.54386058,3177.5,3176.6,0.63081809]
[1768320821704,8.54386058,3177.5,3176.5,1.14455156]
[1768320821905,2.0024316,3177.4,3176.5,1.14455156]
[1768320822116,9.68864347,3177.5,3176.2,0.001]
[1768320822117,2.0024316,3177.2,3176.2,0.001]
[1768320822315,0.2920577,3177.1,3176.2,0.001]
[1768320822520,0.247,3177.0,3176.2,3.14938381]
[1768320822714,2.0024316,3177.4,3176.3,0.31493838]
[1768320822905,6.29465268,3177.3,3176.3,0.31493838]
[1768320823128,6.29465268,3177.3,3176.0,2.01551031]
[1768320823129,0.53898199,3177.2,3176.0,2.01551031]
[1768320823329,0.53898199,3177.2,3176.0,5.16405093]
[1768320823330,0.29198199,3177.1,3176.0,5.16405093]
[1768320823535,0.29198199,3177.0,3176.0,2.01551031]
[1768320823741,0.29198199,3176.9,3176.0,2.53193983]
[1768320824042,0.29198199,3176.8,3176.0,2.01551031]
[1768320824231,0.29198199,3176.7,3175.6,3.14894615]
[1768320824435,0.29198199,3176.6,3175.8,3.14874511]
[1768320824746,0.29198199,3176.5,3175.9,2.01551031]
[1768320824907,0.29198199,3176.4,3175.9,5.16414186]
[1768320825105,0.29198199,3176.3,3176.0,0.51641419]
[1768320825341,3.14772881,3176.9,3176.0,0.51641419]
[1768320825644,6.29445458,3177.4,3176.1,2.01551031]
[1768320826038,0.247,3177.3,3176.1,2.01551031]
[1768320827210,6.2948508,3177.2,3176.2,3.14841634]
[1768320827405,6.2948508,3177.2,3176.1,2.01551031]
[1768320827406,6.2948508,3177.2,3176.3,0.51639266]
[1768320827651,6.2948508,3177.2,3176.1,5.16399165]
[1768320827851,3.1474254,3177.2,3176.1,8.31250712]
[1768320828052,3.1474254,3177.2,3176.2,2.01551031]
[1768320828351,6.2948508,3177.2,3176.2,2.01551031]
[1768320829152,3.1474254,3177.2,3176.2,2.01551031]
[1768320829445,3.14722729,3177.4,3176.4,8.31194651]
[1768320829612,3.14722729,3177.4,3176.3,0.76240026]
[1768320829613,6.29448461,3177.4,3176.3,3.91069722]
[1768320830034,6.29448461,3177.4,3176.3,5.85338351]
[1768320831024,6.29448461,3177.4,3176.4,2.01551031]
[1768320831348,2.0024316,3177.5,3176.3,0.68957624]
[1768320831513,2.0024316,3177.5,3176.4,0.246]
[1768320832446,2.0024316,3177.3,3176.4,0.246]
[1768320833043,2.0024316,3177.3,3176.2,0.246]
[1768320833210,0.247,3177.5,3176.3,5.16380029]
[1768320833416,6.29445458,3177.4,3176.4,3.14816788]
[1768320833930,6.29445458,3177.4,3176.4,2.01551031]
[1768320835712,2.0024316,3177.4,3176.2,0.47215103]
[1768320836145,2.0024316,3177.4,3176.2,2.48766134]
[1768320836339,0.82966881,3177.3,3176.4,3.14812966]
[1768320836846,2.0024316,3177.4,3176.4,3.14812966]
[1768320837351,6.29425648,3177.5,3176.4,5.16363997]
[1768320837659,6.29425648,3177.5,3176.5,2.01551031]
[1768320838063,6.29425648,3177.5,3176.5,5.16362178]
[1768320838530,6.29425648,3177.5,3176.6,2.01551031]
[1768320838736,6.29425648,3177.5,3176.7,0.76236218]
[1768320838942,0.002,3177.1,3176.7,0.55784414]
[1768320839258,0.29329369,3177.0,3176.7,0.55784414]
[1768320839556,0.29329369,3176.9,3176.7,2.57335445]
[1768320839750,1e-08,3177.1,3176.7,2.57335445]
[1768320840146,0.002,3177.4,3176.8,0.57213154]
[1768320840353,0.002,3177.4,3176.7,2.57335445]
[1768320840550,0.002,3177.4,3176.7,5.72125158]
[1768320840765,0.002,3177.4,3176.8,2.01551031]
[1768320841565,0.002,3177.4,3176.9,2.01551031]
[1768320841726,0.002,3178.0,3177.3,2.01551031]
[1768320841931,0.002,3178.0,3177.4,3.39322729]
[1768320842188,3.14643508,3178.2,3177.4,3.39322729]
[1768320842189,2.0024316,3178.2,3177.4,3.39322729]
[1768320842485,0.002,3178.3,3177.5,2.01551031]
[1768320842668,3.14627243,3178.4,3177.5,2.01551031]
[1768320843367,3.14617155,3178.5,3177.5,2.01551031]
[1768320843551,3.14617155,3178.5,3177.7,2.01551031]
[1768320843939,3.14569649,3179.0,3177.8,2.01551031]
[1768320844154,3.14569649,3179.0,3177.9,0.246]
[1768320844355,2.0024316,3178.9,3177.9,0.246]
[1768320845781,2.0024316,3178.9,3177.6,0.85559649]
[1768320845935,2.0024316,3178.9,3176.4,1.94254797]
[1768320845936,1.85120461,3178.5,3176.4,1.94254797]
[1768320846129,1.85120461,3178.3,3176.5,2.18854797]
[1768320846345,1.85120461,3178.1,3176.6,0.246]
[1768320846582,12.83115652,3178.6,3176.7,3.48728072]
[1768320846583,1.85120461,3177.9,3176.7,3.48728072]
[1768320846889,1.89053999,3177.8,3176.7,0.33940415]
[1768320847093,1.89053999,3177.8,3176.8,0.246]
[1768320847384,1.89053999,3177.8,3176.7,0.33940415]
[1768320847567,1.89053999,3177.8,3176.8,0.246]
[1768320847746,1.85120461,3177.8,3176.8,0.246]
[1768320847942,8.14506493,3177.7,3176.8,0.246]
[1768320848980,8.14506493,3177.7,3176.3,3.14831722]
[1768320848981,8.14506493,3177.7,3176.7,0.246]
[1768320849490,8.14506493,3177.7,3176.2,1.94254797]
[1768320849491,1.89054247,3177.6,3176.5,0.246]
[1768320849782,1.85120461,3177.5,3176.5,0.246]
[1768320850065,1.85120461,3177.3,3176.4,0.246]
[1768320850211,1.85120461,3177.3,3176.0,6.29719904]
[1768320850719,1.85120461,3177.3,3176.1,0.246]
[1768320850920,1.85120461,3177.3,3176.2,0.6543199]
[1768320851574,0.29359959,3177.2,3176.2,0.6543199]
[1768320851812,0.29359957,3177.1,3176.2,0.6543199]
[1768320851974,6.58884665,3177.0,3176.2,0.6543199]
[1768320852180,0.29359957,3176.9,3176.2,0.6543199]
[1768320852393,0.29359957,3176.8,3176.1,0.246]
[1768320852708,6.29524708,3177.0,3176.1,0.246]
[1768320852709,0.29359957,3176.7,3176.1,0.246]
[1768320852873,0.29359957,3176.6,3176.1,0.246]
[1768320853073,0.29359957,3176.5,3176.1,0.246]
[1768320853316,6.29524708,3177.0,3176.1,0.58546548]
[1768320853473,0.29371066,3176.9,3176.1,0.246]
[1768320853670,0.29371066,3176.8,3176.1,0.246]
[1768320853909,0.29371066,3176.7,3176.0,3.39457943]
[1768320854210,0.29371066,3176.6,3176.0,0.246]
[1768320854381,0.29371066,3176.5,3176.0,0.246]
[1768320854580,3.1479341,3176.7,3176.0,0.246]
[1768320854779,0.29371075,3176.6,3176.0,0.33947897]
[1768320854982,3.1479341,3176.7,3176.0,0.33947897]
[1768320854983,0.29371075,3176.5,3176.0,0.33947897]
[1768320855205,3.1479341,3176.7,3176.0,0.33947897]
[1768320855509,0.29370996,3176.6,3176.0,3.48807412]
[1768320855711,0.29370996,3176.5,3176.0,0.33947897]
[1768320855910,3.14792671,3176.7,3175.8,3.39480496]
[1768320856081,5.2e-07,3176.6,3175.9,3.14863393]
[1768320856280,3.1478217,3176.8,3175.9,3.14863393]
[1768320856512,3.1478217,3176.8,3175.9,6.29734768]
[1768320856696,3.1478217,3176.8,3175.9,3.14863393]
[1768320856901,3.1478217,3176.8,3176.0,0.65434163]
[1768320857418,2.86130422,3176.8,3176.0,0.65434163]
[1768320857581,6.00912592,3176.8,3176.0,0.65434163]
[1768320857908,2.54914783,3176.8,3176.0,0.65434163]
[1768320858306,6.29524708,3177.0,3176.0,0.65434163]
[1768320858616,6.29524708,3177.0,3175.8,2.15794188]
[1768320858792,8.13762335,3177.0,3176.0,3.1485989]
[1768320858994,3.39455177,3177.1,3176.1,1.91194188]
[1768320859188,3.14755177,3177.1,3176.1,1.91194188]
[1768320859390,6.29510354,3177.1,3176.1,1.91194188]
[1768320859597,6.2377861,3177.1,3176.2,0.82091554]
[1768320859781,6.16992889,3177.1,3176.2,0.82091554]
[1768320859982,6.16992889,3177.1,3176.3,0.246]
[1768320860214,11.10243429,3180.2,3176.3,5.30616699]
[1768320860215,3.14748706,3177.2,3176.3,5.30616699]
[1768320860403,1.84237627,3177.9,3176.4,1.91194188]
[1768320860582,3.14700273,3177.7,3176.6,1.91194188]
[1768320860784,0.002,3178.1,3176.7,1.91194188]
[1768320861017,3.14668775,3178.0,3176.9,1.91194188]
[1768320861213,0.002,3178.1,3176.9,1.91194188]
[1768320861628,3.14635368,3178.3,3177.3,1.91194188]
[1768320861795,3.14613811,3178.5,3177.5,1.91194188]
[1768320862414,0.20024316,3178.8,3177.5,1.91194188]
[1768320862415,6.29188032,3178.7,3177.6,3.1470292]
[1768320862577,6.29188032,3178.7,3177.5,5.05902731]
[1768320863419,6.29188032,3178.7,3177.6,1.91194188]
[1768320863921,1.84237627,3178.6,3177.7,0.246]
[1768320864089,2.99042026,3178.6,3177.7,0.246]
[1768320864412,6.29227622,3178.5,3177.7,0.246]
[1768320864619,8.13465249,3178.5,3177.7,0.246]
[1768320864823,1.84237627,3178.4,3177.5,0.246]
[1768320865059,1.84237627,3178.4,3177.0,1.91194188]
[1768320865189,9.43841433,3178.5,3176.3,1.91194188]
[1768320865190,1.84237627,3178.2,3176.3,1.91194188]
[1768320865389,1.84237627,3178.0,3176.4,0.246]
[1768320865618,1.84237627,3177.8,3176.5,3.14808051]
[1768320865918,1.88171289,3177.7,3176.6,0.33940805]
[1768320866127,1.84237627,3177.7,3177.2,0.001]
[1768320866294,3.1470292,3177.6,3176.6,3.48739796]
[1768320866615,3.14683114,3177.8,3176.7,8.20778346]
[1768320866817,6.29366228,3177.8,3176.8,0.85471915]
[1768320867519,1.88171289,3177.7,3176.2,3.96924116]
[1768320867687,1.84237627,3177.7,3176.4,3.14821532]
[1768320868018,1.84237627,3177.7,3176.3,3.39425726]
[1768320868629,1.84237627,3177.5,3176.3,0.246]
[1768320868863,1.84237627,3177.3,3176.3,3.39431555]
[1768320869233,1.84237627,3177.3,3176.3,0.246]
[1768320869432,1.84237627,3177.3,3176.2,3.39435699]
[1768320869860,1.84237627,3177.3,3176.2,0.246]
[1768320870225,1.88171908,3177.2,3176.2,0.246]
[1768320870426,3.14762354,3177.0,3176.2,3.39432002]
[1768320870646,6.29524708,3177.0,3175.8,1.91194188]
[1768320870851,6.29524708,3177.0,3176.0,0.246]
[1768320871225,3.14762354,3177.0,3176.2,3.14837907]
[1768320871420,4.98999981,3177.0,3175.7,1.91194188]
[1768320871636,4.98999981,3177.0,3175.6,3.14896349]
[1768320871637,3.14762354,3177.0,3176.2,3.14835145]
[1768320871835,4.98990534,3177.1,3176.2,6.29676779]
[1768320872045,4.98990534,3177.1,3176.2,3.14835145]
[1768320872224,6.29505814,3177.1,3176.2,5.06029333]
[1768320872426,6.2948508,3177.2,3176.1,3.14848409]
[1768320872649,7.37659632,3177.2,3176.2,0.31484841]
[1768320872856,7.37659632,3177.2,3175.9,1.91194188]
[1768320873640,10.52402172,3177.2,3175.9,1.91194188]
[1768320873971,7.37659632,3177.2,3175.9,1.91194188]
[1768320874277,6.2948508,3177.2,3175.9,1.91194188]
[1768320874466,6.2948508,3177.2,3176.1,3.14851547]
[1768320874666,8.13722707,3177.2,3176.1,3.14851547]
[1768320875366,1.8756381,3177.1,3176.2,0.246]
[1768320876462,3.39436966,3177.3,3175.8,5.5772061]
[1768320876463,8.17088518,3177.0,3175.8,5.5772061]
[1768320876660,1.8756381,3176.9,3175.9,0.55772061]
[1768320876867,1.8756381,3176.7,3175.6,1.92234971]
[1768320877239,1.8756381,3176.7,3175.6,5.07135512]
[1768320877445,1.8756381,3176.7,3175.6,1.92234971]
[1768320877678,1.8756381,3176.7,3175.7,3.14884528]
[1768320877977,1.8756381,3176.7,3175.6,1.92234971]
[1768320878143,1.8756381,3176.7,3175.0,3.15055427]
[1768320878144,1.8756381,3176.5,3175.1,0.246]
[1768320878544,8.1720743,3176.4,3175.2,3.14933671]
[1768320878976,3.14816212,3176.5,3175.2,8.22109433]
[1768320879161,3.14816212,3176.5,3175.3,1.92234971]
[1768320879162,6.29632424,3176.5,3175.3,1.92234971]
[1768320879362,3.14816212,3176.5,3175.3,1.92234971]
[1768320879581,3.14795712,3176.7,3175.5,1.92234971]
[1768320879744,3.14795712,3176.7,3175.6,0.246]
[1768320879951,8.17155234,3176.7,3175.4,1.13705022]
[1768320880156,8.17155234,3176.7,3175.5,0.246]
[1768320880487,8.17155234,3176.7,3175.6,3.14901121]
[1768320880692,1.8756381,3176.6,3175.7,0.9004027]
[1768320880998,1.8756381,3176.6,3175.7,0.246]
[1768320881588,1.8756381,3176.6,3175.5,3.14910049]
[1768320882196,1.8756381,3176.6,3175.5,3.1490784]
[1768320882557,6.29623798,3176.5,3175.4,3.14919603]
[1768320882795,8.17187608,3176.5,3175.4,3.14919603]
[1768320883016,1.8756381,3176.4,3175.5,0.62984266]
[1768320884286,1.8756381,3176.4,3175.3,3.14927456]
[1768320884670,1.8756381,3177.1,3175.4,1.92234971]
[1768320884855,2.1226381,3176.8,3175.4,1.92234971]
[1768320885189,2.1226381,3176.8,3175.5,0.246]
[1768320885354,1.8756381,3176.6,3175.6,0.21683497]
[1768320885756,1.8756381,3176.6,3175.5,0.246]
[1768320886489,0.25161281,3176.7,3175.3,3.14927456]
[1768320886490,1.8756381,3176.4,3175.3,3.39527456]
[1768320886682,0.21226381,3176.7,3175.3,3.39527456]
[1768320886683,1.8756381,3176.2,3175.3,3.39527456]
[1768320887598,1.8756381,3176.2,3175.3,3.39528045]
[1768320888873,3.14851547,3176.1,3175.3,3.39528045]
[1768320889094,1.8756381,3176.0,3175.3,0.90047154]
[1768320889305,1.8756381,3176.0,3175.0,0.001]
[1768320889666,1.8756381,3176.0,3175.2,3.14935228]
[1768320889995,1.8756381,3176.0,3175.2,3.14934579]
[1768320890156,1.8756381,3176.0,3175.0,0.001]
[1768320890495,0.247,3176.3,3175.3,3.14926368]
[1768320890814,2.1226381,3176.3,3175.3,3.14926368]
[1768320891010,2.1226381,3176.3,3175.0,3.15056864]
[1768320891011,1.9149933,3176.2,3175.0,3.15056864]
[1768320891224,1.9149933,3176.2,3175.0,0.001]
[1768320891225,1.8756381,3176.2,3175.0,0.001]
[1768320891435,1.8756381,3176.2,3175.6,0.001]
[1768320891578,6.54367042,3176.3,3175.6,0.001]
[1768320891579,1.8756381,3176.0,3175.6,0.001]
[1768320891964,1.8756381,3176.0,3175.0,0.001]
[1768320892199,1.8756381,3176.0,3175.0,6.30019304]
[1768320897408,1.8756381,3176.0,3175.0,3.15058675]
[1768320897812,1.8756381,3176.0,3175.0,0.001]
[1768320897998,1.8756381,3175.8,3175.0,0.001]
[1768320898795,1.8756381,3175.6,3175.0,0.001]
[1768320899612,1.8756381,3175.6,3174.2,3.15035362]
[1768320899613,1.91491011,3175.6,3173.6,1.92234971]
[1768320899913,1.8756381,3175.6,3174.1,6.3009987]
[1768320900233,1.8756381,3175.6,3174.1,3.15049935]
[1768320900234,1.8756381,3175.4,3174.1,3.15049935]
[1768320900418,1.8756381,3175.2,3174.1,3.15049935]
[1768320900574,1.8756381,3175.2,3174.1,6.3009987]
[1768320900773,1.8756381,3175.2,3174.1,3.15049935]
[1768320900979,1.8756381,3175.2,3173.3,5.07358882]
[1768320901203,1.8756381,3175.0,3173.8,3.15074258]
[1768320901401,1.8756381,3175.0,3173.9,3.15067247]
[1768320901583,1.8756381,3175.0,3172.8,2.16934971]
[1768320901785,1.8756381,3175.0,3173.5,3.1510728]
[1768320902026,1.8756381,3174.8,3172.9,6.30338176]
[1768320902178,1.8756381,3174.6,3173.0,1.16244624]
[1768320902879,1.8756381,3174.6,3173.0,3.08479595]
[1768320903503,0.247,3174.5,3173.0,3.08479595]
[1768320903678,1.8756381,3174.4,3173.0,3.08479595]
[1768320903876,1.8756381,3174.4,3173.1,3.15149223]
[1768320904077,1.8756381,3174.2,3173.1,6.30298446]
[1768320904699,1.8756381,3174.2,3173.1,9.45447669]
[1768320905017,3.14941574,3175.2,3173.2,1.87262201]
[1768320905018,0.247,3175.2,3173.2,1.87262201]
[1768320905177,1.88736841,3175.2,3173.4,1.87262201]
[1768320905519,1.88736841,3175.2,3173.6,1.87262201]
[1768320905809,1.88736841,3175.2,3174.4,0.00755339]
[1768320906010,0.16,3176.5,3174.4,0.00755339]
[1768320906011,2.13436841,3175.8,3174.5,6.30020474]
[1768320906184,2.17372857,3175.8,3174.5,6.30020474]
[1768320906611,2.13436841,3175.8,3174.5,6.30020474]
[1768320907323,0.247,3175.8,3174.6,1.87262201]
[1768320907542,0.247,3175.8,3174.7,1.13229291]
[1768320908036,0.002,3175.9,3174.9,6.299411]
[1768320908239,0.002,3175.9,3175.0,1.87262201]
[1768320908812,1.2e-07,3176.2,3175.3,1.87262201]
[1768320909013,1.2e-07,3176.2,3175.4,0.247]
[1768320909259,1.2e-07,3176.2,3175.5,0.2119622]
[1768320909609,1.2e-07,3176.2,3175.5,2.08458421]
[1768320910025,1.2e-07,3176.2,3175.6,6.54502242]
[1768320910340,1.2e-07,3176.2,3175.7,0.247]
[1768320910528,1.2e-07,3176.2,3175.6,6.54502242]
[1768320910733,1.2e-07,3176.2,3175.7,0.67569846]
[1768320911431,0.002,3176.8,3175.7,0.67569846]
[1768320911634,0.002,3176.8,3175.7,2.54832047]
[1768320912008,0.002,3176.8,3175.8,8.17024779]
[1768320912213,0.002,3176.8,3175.8,11.31906068]